fUSD/lending_fUSD_20260416
["ID","MTS","AMOUNT","RATE_DAILY","PERIOD"]
[420585164,1776274374039,-13262.57237594,0.000153,2]
[420585165,1776274374062,-20945.6317975,0.000153,2]
[420585166,1776274374429,-69238.54205157,0.000153,2]
[420585167,1776274375070,-534358.14290366,0.000153,2]
[420585168,1776274375235,-30140.82886667,0.000153,2]
[420585169,1776274375382,-836.38893955,0.000153,2]
[420585170,1776274375505,-612.73558738,0.000153,2]
[420585171,1776274375918,-30527.08858614,0.000153,2]
[420585173,1776274493986,-3691.07898384,8.961e-05,2]
[420585174,1776274494001,-748.00966555,8.961e-05,2]
[420585175,1776274494021,-1363.52135061,8.961e-05,2]
[420585176,1776274494032,-200.0,8.976e-05,2]
[420585177,1776274494043,-500.0,9.015e-05,2]
[420585178,1776274494053,-2000.0,9.03e-05,2]
[420585179,1776274494069,-167.03,9.193e-05,2]
[420585180,1776274494082,-476.91275122,9.193e-05,2]
[420585181,1776274494092,-1792.17071848,9.233e-05,2]
[420585182,1776274494113,-60.24928152,9.233e-05,2]
[420585183,1776274494126,-166.66,9.398e-05,2]
[420585184,1776274494137,-166.66,9.708e-05,2]
[420585185,1776274494156,-150.0,9.888e-05,2]
[420585186,1776274494169,-150.0,9.888e-05,2]
[420585187,1776274494179,-42.29940745,9.888e-05,2]
[420585188,1776274494202,-107.70059255,9.888e-05,2]
[420585189,1776274494219,-167.03,9.959e-05,2]
[420585190,1776274494230,-166.66,0.00010019,2]
[420585191,1776274494248,-261.87029505,0.000101,2]
[420585192,1776274494258,-2000.0,0.00010159,2]
[420585193,1776274494271,-166.66,0.00010329,2]
[420585194,1776274494289,-500.0,0.00010499,2]
[420585195,1776274494303,-544.18179301,0.00010499,2]
[420585196,1776274494315,-500.0,0.00010499,2]
[420585197,1776274494330,-500.0,0.00010499,2]
[420585198,1776274494342,-415.00428127,0.00010499,2]
[420585199,1776274494355,-194.59168375,0.00010499,2]
[420585200,1776274494367,-181.94364237,0.00010499,2]
[420585201,1776274494382,-318.05635763,0.00010499,2]
[420585202,1776274494394,-641.16360057,0.000105,2]
[420585203,1776274494416,-358.83639943,0.000105,2]
[420585204,1776274494425,-1055.00447,0.000105,2]
[420585205,1776274494442,-2957.87319597,0.000105,2]
[420585206,1776274494463,-2528.85243403,0.000105,2]
[420585207,1776274494474,-271.45172559,0.000105,2]
[420585208,1776274494486,-4790.59180879,0.000105,2]
[420585209,1776274494503,-196915.57626562,0.000105,2]
[420585210,1776274494513,-166.66,0.00010639,2]
[420585211,1776274494526,-167.03,0.00010725,2]
[420585212,1776274494538,-154.15880079,0.00010898,2]
[420585213,1776274494551,-166.66,0.00010949,2]
[420585214,1776274494563,-150.0,0.00010959,2]
[420585215,1776274494573,-395.0,0.00010992,5]
[420585216,1776274494582,-152.0,0.00010992,5]
[420585217,1776274494594,-6013.86919593,0.00011,2]
[420585218,1776274494606,-2000.0,0.00011287,2]
[420585219,1776274494616,-167.03,0.00011491,2]
[420585220,1776274494626,-167.03,0.00012257,2]
[420585221,1776274494638,-2000.0,0.00012416,2]
[420585222,1776274494648,-5802.61,0.00012545,2]
[420585223,1776274494661,-167.03,0.00013023,2]
[420585224,1776274494670,-1004.62770385,0.0001305,2]
[420585225,1776274494684,-2000.0,0.00013545,2]
[420585226,1776274494694,-166.66,0.00013699,2]
[420585227,1776274494709,-2192.83,0.00013699,2]
[420585228,1776274494723,-167.03,0.00013789,2]
[420585229,1776274494733,-166.66,0.00013836,2]
[420585230,1776274494745,-166.66,0.00013973,2]
[420585231,1776274494756,-166.66,0.0001411,2]
[420585232,1776274494770,-166.66,0.00014247,2]
[420585233,1776274494780,-166.66,0.00014384,2]
[420585234,1776274494790,-347649.43672567,0.000153,2]
[420585235,1776274494802,-55036.28742125,0.000153,2]
[420585236,1776274494816,-73053.4399244,0.000153,2]
[420585237,1776274494831,-41945.35065373,0.000153,2]
[420585238,1776274494849,-456.50541151,0.000153,2]
[420585239,1776274494861,-1675.51726259,0.000153,2]
[420585240,1776274494879,-555.59417147,0.000153,2]
[420585241,1776274494896,-2157.20744558,0.000153,2]
[420585242,1776274494909,-346.84803172,0.000153,2]
[420585243,1776274494929,-1557.27262659,0.000153,2]
[420585244,1776274494943,-1300.57826522,0.000153,2]
[420585245,1776274494960,-767.21023824,0.000153,2]
[420585246,1776274494981,-1546.46476647,0.000153,2]
[420585247,1776274494993,-927.69623708,0.000153,2]
[420585248,1776274495018,-1127.54480993,0.000153,2]
[420585249,1776274495032,-4658.96512418,0.000153,2]
[420585250,1776274495047,-488.47721465,0.000153,2]
[420585251,1776274495069,-14488.07893901,0.000153,2]
[420585252,1776274496000,-150.0,0.00010959,2]
[420585253,1776274496023,-350.0,0.000153,2]
[420585254,1776274496039,-3933.61575928,0.000153,2]
[420585255,1776274496058,-4976.28028505,0.000153,2]
[420585256,1776274496075,-3000.0,0.000153,2]
[420585257,1776274496095,-667.96197469,0.000153,2]
[420585258,1776274496117,-490.89709985,0.000153,2]
[420585259,1776274496133,-847.0,0.000153,2]
[420585260,1776274496154,-7231.10946283,0.000153,2]
[420585261,1776274496166,-1187.35566211,0.000153,2]
[420585262,1776274496186,-24578.79273704,0.000153,2]
[420585263,1776274496205,-168.0,0.00015304,2]
[420585264,1776274496218,-168.0,0.00015305,2]
[420585265,1776274496230,-168.0,0.00015315,2]
[420585266,1776274496247,-4846.0,0.00015334,2]
[420585267,1776274496258,-168.0,0.00015371,2]
[420585268,1776274496271,-168.0,0.00015387,2]
[420585269,1776274496286,-168.0,0.00015432,2]
[420585270,1776274496297,-168.0,0.00015446,2]
[420585271,1776274496308,-3533.19018019,0.00015474,2]
[420585272,1776274496328,-1312.80981981,0.00015474,2]
[420585273,1776274496338,-4000.0,0.00015507,2]
[420585274,1776274496347,-168.0,0.00015515,2]
[420585275,1776274496358,-168.0,0.00015553,2]
[420585276,1776274496374,-168.0,0.00015601,2]
[420585277,1776274496385,-168.0,0.00015644,2]
[420585278,1776274496395,-168.0,0.00015648,2]
[420585279,1776274496406,-168.0,0.00015663,2]
[420585280,1776274496423,-4846.0,0.00015672,2]
[420585281,1776274496433,-4846.0,0.00015751,2]
[420585282,1776274496445,-168.0,0.00015812,2]
[420585283,1776274496458,-168.0,0.00015874,2]
[420585284,1776274496471,-168.0,0.00015877,2]
[420585285,1776274496482,-2000.0,0.0001589,2]
[420585286,1776274496499,-4000.0,0.00015895,2]
[420585287,1776274496511,-168.0,0.00015898,2]
[420585288,1776274496523,-150.0,0.000159,2]
[420585289,1776274496533,-150.0,0.000159,2]
[420585290,1776274496547,-150.0,0.000159,2]
[420585291,1776274496560,-150.0,0.000159,2]
[420585292,1776274496569,-378.17347688,0.00015952,2]
[420585293,1776274496582,-150.88,0.00016,2]
[420585294,1776274496600,-3000.0,0.00016,2]
[420585295,1776274496610,-500.0,0.00016,2]
[420585296,1776274496623,-160.0,0.000162,7]
[420585297,1776274496638,-150.25824856,0.000162,7]
[420585298,1776274496654,-4000.0,0.00016282,2]
[420585299,1776274496669,-277.21,0.00016438,2]
[420585300,1776274496688,-462.03,0.00016438,2]
[420585301,1776274496698,-250.0,0.00016438,2]
[420585302,1776274496714,-152.0,0.00016438,2]
[420585303,1776274496727,-152.0,0.00016438,2]
[420585304,1776274496740,-152.0,0.00016459,2]
[420585305,1776274496755,-152.0,0.00016459,2]
[420585306,1776274496767,-152.0,0.00016459,2]
[420585307,1776274496780,-152.0,0.00016459,2]
[420585308,1776274496793,-1530.0,0.00016459,2]
[420585309,1776274496807,-152.0,0.00016459,2]
[420585310,1776274496816,-152.0,0.00016459,2]
[420585311,1776274496826,-579.27,0.000165,7]
[420585312,1776274496843,-4000.0,0.0001667,2]
[420585313,1776274496855,-117733.38666036,0.000169,2]
[420585314,1776274496866,-1601.52599657,0.000169,2]
[420585315,1776274496880,-4000.0,0.00017058,2]
[420585316,1776274496891,-1131.78,0.00017341,2]
[420585317,1776274496903,-2917.12,0.00017341,2]
[420585318,1776274496916,-9167.35,0.00017341,2]
[420585319,1776274496932,-2525.06,0.00017341,2]
[420585320,1776274496945,-151.0,0.000175,5]
[420585321,1776274496958,-403.0,0.000177,5]
[420585322,1776274496971,-277.21,0.00017808,2]
[420585323,1776274496980,-462.03,0.00017808,2]
[420585324,1776274496990,-1339.67675735,0.00017948,2]
[420585325,1776274497003,-183.75931855,0.00017948,2]
[420585326,1776274497017,-182.18704184,0.00017948,2]
[420585327,1776274497028,-126717.58845324,0.00018,2]
[420585328,1776274497442,-465355.77534794,0.00018,2]
[420585329,1776274497461,-1064.40417485,0.00018,2]
[420585330,1776274497482,-1678.19997191,0.00018,2]
[420585331,1776274497503,-824736.4196716,0.00018,2]
[420585332,1776274497521,-847445.66776734,0.00018,2]
[420585333,1776274497533,-235574.3304,0.00018,2]
[420585334,1776274497549,-558.94424458,0.00018,2]
[420585335,1776274497569,-1141.47131779,0.00018,2]
[420585336,1776274497596,-1857.30510108,0.00018,2]
[420585337,1776274497729,-184.4039041,0.00010982,2]
[420585338,1776274497745,-662.15132934,0.00018,2]
[420585339,1776274497757,-588.18886166,0.00018,2]
[420585340,1776274497772,-530.00010253,0.00018,2]
[420585341,1776274497795,-679.9945,0.00018,2]
[420585342,1776274497821,-671.81221062,0.00018,2]
[420585343,1776274497835,-74011.99999997,0.00018,2]
[420585344,1776274497857,-590.0917593,0.00018,2]
[420585345,1776274498009,-1563.37047602,0.0001,2]
[420585346,1776274498022,-1468.38328983,0.0001,2]
[420585347,1776274498040,-2843.05019298,0.0001,2]
[420585348,1776274498053,-5948.0,0.0001,2]
[420585349,1776274498143,-4471.52218296,0.00018,2]
[420585350,1776274498172,-20945.6317975,0.00018,2]
[420585351,1776274498364,-836.38893955,0.00018,2]
[420585352,1776274498389,-612.73558738,0.00018,2]
[420585353,1776274498401,-5120.76453913,0.00018,2]
[420585354,1776274498441,-30527.08858614,0.00018,2]
[420585355,1776274498456,-2383.15953484,0.00018,2]
[420585356,1776274498481,-69238.54205157,0.00018,2]
[420585357,1776274498491,-534358.14290366,0.00018,2]
[420585358,1776274498522,-30140.82886667,0.00018,2]
[420585359,1776274499928,3166.512303,7.945e-05,2]
[420585360,1776274508986,170.29,7.11e-05,2]
[420585361,1776274509023,170.29,7.999e-05,2]
[420585363,1776274514038,244.0,7.11e-05,2]
[420585364,1776274553446,327.66,8.76e-05,2]
[420585365,1776274555297,5921.247697,8.738e-05,2]
[420585366,1776274555335,10000.0,8.738e-05,2]
[420585367,1776274555375,6843.552303,8.738e-05,2]
[420585368,1776274559403,2426.32,8.726e-05,2]
[420585369,1776274569047,730.127697,8.71e-05,2]
[420585370,1776274569069,7529.512303,8.71e-05,2]
[420585371,1776274573818,1200.0,8.709e-05,2]
[420585374,1776274581159,1270.487697,8.68e-05,2]
[420585375,1776274581182,2658.192303,8.68e-05,2]
[420585376,1776274581559,255.0,8.709e-05,2]
[420585377,1776274581596,300.0,8.709e-05,2]
[420585378,1776274582684,1200.0,8.709e-05,2]
[420585379,1776274601159,300.0,8.708e-05,2]
[420585386,1776274617457,195.68,8.706e-05,2]
[420585389,1776274625973,150.0,8.7e-05,2]
[420585390,1776274628984,244.0,7.11e-05,2]
[420585391,1776274640498,150.0,8.7e-05,2]
[420585392,1776274642226,150.0,8.759e-05,2]
[420585393,1776274642275,1200.0,8.679e-05,2]
[420585394,1776274647892,250.0,8.765e-05,2]
[420585395,1776274650496,-2962.35,8.786e-05,2]
[420585396,1776274650505,-170.29,8.888e-05,2]
[420585397,1776274650517,-2831.5,9.233e-05,2]
[420585398,1776274650527,-2831.5,9.233e-05,2]
[420585399,1776274650540,-1680.0,9.547e-05,2]
[420585400,1776274650550,-500.0,9.625e-05,2]
[420585401,1776274650561,-150.0,9.625e-05,2]
[420585402,1776274650571,-255.0,9.635e-05,2]
[420585403,1776274650583,-170.29,9.777e-05,2]
[420585404,1776274650593,-247.24638393,9.888e-05,2]
[420585405,1776274650603,-150.00000001,9.888e-05,2]
[420585406,1776274650614,-152.3967772,9.888e-05,2]
[420585407,1776274650623,-174.48765891,9.888e-05,2]
[420585408,1776274650639,-48.62669507,9.888e-05,2]
[420585409,1776274650650,-191.8294,0.0001,2]
[420585410,1776274650661,-954.61129688,0.0001029,2]
[420585411,1776274650677,-788.89455112,0.0001029,2]
[420585412,1776274650686,-191.054622,0.0001029,2]
[420585413,1776274650696,-866.7100747,0.0001029,2]
[420585414,1776274650709,-452.7569353,0.0001029,2]
[420585415,1776274650722,-295.25273025,0.0001029,2]
[420585416,1776274650733,-345.19728589,0.0001029,2]
[420585417,1776274650749,-431.23530086,0.0001029,2]
[420585418,1776274650758,-678.854983,0.0001029,2]
[420585419,1776274650768,-1539.175299,0.0001029,2]
[420585420,1776274650777,-3850.36923745,0.0001029,2]
[420585421,1776274650790,-735.86868897,0.0001029,2]
[420585422,1776274650802,-959.2199582,0.0001029,2]
[420585423,1776274650813,-1413.84086943,0.0001029,2]
[420585424,1776274650853,-2409.49017045,0.0001029,2]
[420585425,1776274650865,-2278.30170864,0.0001029,2]
[420585426,1776274650878,-3509.29180879,0.0001029,2]
[420585427,1776274650890,-1564.62421589,0.0001029,2]
[420585428,1776274650901,-346.84803172,0.0001029,2]
[420585429,1776274650920,-454.02947525,0.0001029,2]
[420585430,1776274650932,-706.49,0.0001029,2]
[420585431,1776274650943,-749.6440699,0.0001029,2]
[420585432,1776274650971,-1300.57826522,0.0001029,2]
[420585433,1776274650983,-510.10083209,0.0001029,2]
[420585434,1776274650992,-257.10940615,0.0001029,2]
[420585435,1776274651005,-1546.46476647,0.0001029,2]
[420585436,1776274651016,-927.69623708,0.0001029,2]
[420585437,1776274651028,-3758.7754733,0.0001029,2]
[420585438,1776274651037,-1045.646604,0.0001029,2]
[420585439,1776274651049,-195.539652,0.0001029,2]
[420585440,1776274651060,-272.23606434,0.000104,2]
[420585441,1776274651070,-1393.771177,0.000104,2]
[420585442,1776274651079,-20504.60645146,0.000104,2]
[420585443,1776274651089,-1245.47646914,0.000104,2]
[420585444,1776274651101,-500.0,0.00010473,2]
[420585445,1776274651113,-500.0,0.00010473,2]
[420585446,1776274651123,-500.0,0.00010473,2]
[420585447,1776274651132,-500.0,0.00010473,2]
[420585448,1776274651142,-500.0,0.00010473,2]
[420585449,1776274651154,-500.0,0.00010473,2]
[420585450,1776274651165,-500.0,0.00010473,2]
[420585451,1776274651174,-500.0,0.00010473,2]
[420585452,1776274651183,-151.0,0.00010497,2]
[420585453,1776274651193,-632.67,0.00010499,2]
[420585454,1776274651203,-500.0,0.00010499,2]
[420585455,1776274651213,-500.0,0.00010499,2]
[420585456,1776274651223,-500.0,0.00010499,2]
[420585457,1776274651233,-500.0,0.00010499,2]
[420585458,1776274651242,-500.0,0.00010499,2]
[420585459,1776274651251,-347.20726783,0.00010499,2]
[420585460,1776274651260,-500.0,0.00010499,2]
[420585461,1776274651269,-250.0,0.00010499,2]
[420585462,1776274651279,-3769.98907217,0.00010499,2]
[420585463,1776274651289,-3769.98907217,0.00010499,2]
[420585464,1776274651298,-3769.98907217,0.00010499,2]
[420585465,1776274651308,-3769.98907217,0.00010499,2]
[420585466,1776274651317,-3769.98907217,0.00010499,2]
[420585467,1776274651327,-3769.98907217,0.00010499,2]
[420585468,1776274651336,-3769.98907217,0.00010499,2]
[420585469,1776274651345,-3769.98907217,0.00010499,2]
[420585470,1776274651355,-437.48975513,0.00010499,2]
[420585471,1776274651365,-3736.58410571,0.00010499,2]
[420585472,1776274651374,-3736.58410571,0.00010499,2]
[420585473,1776274651383,-3736.58410571,0.00010499,2]
[420585474,1776274651392,-3736.58410571,0.00010499,2]
[420585475,1776274651401,-3736.58410571,0.00010499,2]
[420585476,1776274651412,-3736.58410571,0.00010499,2]
[420585477,1776274651421,-3736.58410571,0.00010499,2]
[420585478,1776274651430,-3736.58410571,0.00010499,2]
[420585479,1776274651441,-3736.58410571,0.00010499,2]
[420585480,1776274651449,-3736.58410571,0.00010499,2]
[420585481,1776274651460,-3736.58410571,0.00010499,2]
[420585482,1776274651469,-3736.58410571,0.00010499,2]
[420585483,1776274651479,-3736.58410571,0.00010499,2]
[420585484,1776274651489,-3736.58410571,0.00010499,2]
[420585485,1776274651499,-3736.58410571,0.00010499,2]
[420585486,1776274651508,-3736.58410571,0.00010499,2]
[420585487,1776274651521,-3736.58410571,0.00010499,2]
[420585488,1776274651530,-3736.58410571,0.00010499,2]
[420585489,1776274651541,-3736.58410571,0.00010499,2]
[420585490,1776274651553,-1000.0,0.000105,2]
[420585491,1776274651563,-5017.0295,0.000105,2]
[420585492,1776274651573,-3075.0,0.000105,2]
[420585493,1776274651582,-2000.0,0.000105,2]
[420585494,1776274651595,-2500.0,0.000105,2]
[420585495,1776274651604,-107255.5837,0.000105,2]
[420585496,1776274651615,-98760.6328,0.000105,2]
[420585497,1776274651625,-2949.3464,0.000105,2]
[420585498,1776274651639,-2351.0,0.00010502,2]
[420585499,1776274651648,-1987.12883571,0.00010599,2]
[420585500,1776274651660,-433.0,0.00010599,2]
[420585501,1776274651670,-170.29,0.00010666,2]
[420585502,1776274651684,-350.0,0.00010685,2]
[420585503,1776274651694,-150.08117248,0.00010712,2]
[420585504,1776274651703,-500.0,0.00010712,2]
[420585505,1776274651712,-500.0,0.00010712,2]
[420585506,1776274651725,-500.0,0.00010712,2]
[420585507,1776274651734,-284.04619609,0.00010712,2]
[420585508,1776274651745,-215.58894533,0.00010712,2]
[420585509,1776274651755,-500.0,0.00010712,2]
[420585510,1776274651768,-500.0,0.00010712,2]
[420585511,1776274651777,-500.0,0.00010712,2]
[420585512,1776274651788,-500.0,0.00010712,2]
[420585513,1776274651799,-505.72457062,0.00010712,2]
[420585514,1776274651810,-632.67,0.00010773,2]
[420585515,1776274651823,-185.69,0.00010959,2]
[420585516,1776274651833,-150.0,0.0001096,2]
[420585517,1776274651846,-150.0,0.0001096,2]
[420585518,1776274651855,-300.0,0.0001099,2]
[420585519,1776274651864,-300.0,0.0001099,2]
[420585520,1776274651877,-300.0,0.0001099,2]
[420585521,1776274651887,-300.0,0.0001099,2]
[420585522,1776274651898,-300.0,0.00010991,2]
[420585523,1776274651908,-300.0,0.00010991,2]
[420585524,1776274651921,-360.58710416,0.00010991,2]
[420585525,1776274651930,-156.0,0.00010992,5]
[420585526,1776274651943,-154.0,0.00010992,5]
[420585527,1776274651952,-348.25771305,0.00011012,2]
[420585528,1776274651965,-168752.3619134,0.00011013,2]
[420585529,1776274651974,-1076.295236,0.00011013,2]
[420585530,1776274651989,-500.0,0.00011021,2]
[420585531,1776274651998,-1000.0,0.00011021,2]
[420585532,1776274652012,-1000.0,0.00011021,2]
[420585533,1776274652023,-1000.0,0.00011021,2]
[420585534,1776274652033,-502.28353177,0.00011021,2]
[420585535,1776274652042,-1000.0,0.00011021,2]
[420585536,1776274652055,-1000.0,0.00011021,2]
[420585537,1776274652069,-632.67,0.00011047,2]
[420585538,1776274652079,-632.67,0.00011321,2]
[420585539,1776274652089,-245.3236,0.000114,2]
[420585540,1776274652105,-6517.56431338,0.00011443,2]
[420585541,1776274652117,-1274.91,0.00011507,2]
[420585542,1776274652127,-3292.0,0.00011552,2]
[420585543,1776274652138,-1500.0,0.00011568,2]
[420585544,1776274652148,-1500.0,0.00011568,2]
[420585545,1776274652160,-1500.0,0.00011568,2]
[420585546,1776274652169,-1500.0,0.00011568,2]
[420585547,1776274652179,-1500.0,0.00011568,2]
[420585548,1776274652190,-632.67,0.00011595,2]
[420585549,1776274652202,-736.0,0.00011658,2]
[420585550,1776274652211,-162.55,0.000117,2]
[420585551,1776274652220,-632.67,0.00011869,2]
[420585552,1776274652232,-410.99714081,0.0001198,2]
[420585553,1776274652243,-6517.56431338,0.00011987,2]
[420585554,1776274652252,-255.15,0.000121,2]
[420585555,1776274652261,-2000.0,0.00012116,2]
[420585556,1776274652273,-2000.0,0.00012116,2]
[420585557,1776274652282,-901.27508644,0.00012116,2]
[420585558,1776274652293,-2000.0,0.00012116,2]
[420585559,1776274652304,-2000.0,0.00012116,2]
[420585560,1776274652315,-632.67,0.00012143,2]
[420585561,1776274652323,-2545.05639864,0.00012203,2]
[420585562,1776274652334,-487.10405518,0.00012277,2]
[420585563,1776274652343,-300.0,0.0001235,2]
[420585564,1776274652353,-308.22594375,0.0001235,2]
[420585565,1776274652365,-632.73,0.00012417,2]
[420585566,1776274652374,-1076.295236,0.00012417,2]
[420585567,1776274652383,-168752.3619134,0.00012433,2]
[420585568,1776274652392,-300.0,0.0001245,2]
[420585569,1776274652403,-350.0,0.00012519,3]
[420585570,1776274652412,-6517.56431338,0.00012532,2]
[420585571,1776274652421,-300.0,0.00012657,2]
[420585572,1776274652430,-1737.08504349,0.00012664,2]
[420585573,1776274652440,-2500.0,0.00012664,2]
[420585574,1776274652450,-2500.0,0.00012664,2]
[420585575,1776274652459,-4609.0,0.00012707,2]
[420585576,1776274652469,-3527.0,0.00012716,2]
[420585577,1776274652478,-2473.0,0.00012716,2]
[420585578,1776274652487,-313.7353,0.000128,2]
[420585579,1776274652496,-1252.0,0.00012823,2]
[420585580,1776274652506,-6517.56431338,0.00013077,2]
[420585581,1776274652515,-350.0,0.00013193,2]
[420585582,1776274652524,-3000.0,0.00013212,2]
[420585583,1776274652533,-3000.0,0.00013212,2]
[420585584,1776274652542,-630.66124612,0.00013212,2]
[420585585,1776274652552,-150.0,0.00013363,2]
[420585586,1776274652561,-150.0,0.00013363,2]
[420585587,1776274652570,-150.0,0.00013363,2]
[420585588,1776274652580,-150.0,0.00013363,2]
[420585589,1776274652589,-150.0,0.00013424,2]
[420585590,1776274652599,-150.0,0.00013424,2]
[420585591,1776274652608,-3240.0,0.00013425,2]
[420585592,1776274652617,-508.0,0.000135,2]
[420585593,1776274652626,-505.99997,0.000135,2]
[420585594,1776274652635,-350.0,0.00013559,2]
[420585595,1776274652644,-6517.56431338,0.00013621,2]
[420585596,1776274652653,-300.0,0.00013697,2]
[420585597,1776274652662,-300.0,0.00013698,2]
[420585598,1776274652672,-500.0,0.00013698,2]
[420585599,1776274652681,-500.0,0.00013698,2]
[420585600,1776274652691,-500.0,0.00013698,2]
[420585601,1776274652700,-500.0,0.00013698,2]
[420585602,1776274652710,-500.0,0.00013698,2]
[420585603,1776274652719,-500.0,0.00013698,2]
[420585604,1776274652728,-500.0,0.00013698,2]
[420585605,1776274652737,-500.0,0.00013698,2]
[420585606,1776274652747,-220.21597056,0.00013698,2]
[420585607,1776274652756,-500.0,0.00013698,2]
[420585608,1776274652765,-500.0,0.00013698,2]
[420585609,1776274652775,-500.0,0.00013698,2]
[420585610,1776274652784,-500.0,0.00013698,2]
[420585611,1776274652793,-500.0,0.00013698,2]
[420585612,1776274652803,-500.0,0.00013698,2]
[420585613,1776274652812,-500.0,0.00013698,2]
[420585614,1776274652822,-500.0,0.00013698,2]
[420585615,1776274652832,-500.0,0.00013698,2]
[420585616,1776274652841,-150.0,0.00013699,2]
[420585617,1776274652851,-150.0,0.00013699,2]
[420585618,1776274652860,-150.0,0.00013699,2]
[420585619,1776274652870,-150.0,0.00013699,2]
[420585620,1776274652880,-150.0,0.00013699,2]
[420585621,1776274652889,-150.0,0.00013699,2]
[420585622,1776274652899,-150.0,0.00013699,2]
[420585623,1776274652908,-150.0,0.00013699,2]
[420585624,1776274652917,-150.0,0.00013699,2]
[420585625,1776274652927,-150.0,0.00013699,2]
[420585626,1776274652937,-150.0,0.00013699,2]
[420585627,1776274652946,-150.0,0.00013699,2]
[420585628,1776274652957,-150.0,0.00013699,2]
[420585629,1776274652966,-150.0,0.00013699,2]
[420585630,1776274652976,-269.0,0.00013699,2]
[420585631,1776274652985,-200.0,0.00013699,2]
[420585632,1776274652994,-188.57,0.00013699,2]
[420585633,1776274653003,-157.14,0.00013699,2]
[420585634,1776274653013,-785.72,0.00013699,2]
[420585635,1776274653022,-500.0,0.00013699,2]
[420585636,1776274653031,-500.0,0.00013699,2]
[420585637,1776274653040,-500.0,0.00013699,2]
[420585638,1776274653050,-500.0,0.00013699,2]
[420585639,1776274653060,-500.0,0.00013699,2]
[420585640,1776274653069,-500.0,0.00013699,2]
[420585641,1776274653078,-387.01996279,0.00013699,2]
[420585642,1776274653088,-364.0,0.00013699,2]
[420585643,1776274653097,-364.0,0.00013699,2]
[420585644,1776274653106,-485.39648373,0.00013699,2]
[420585645,1776274653116,-3500.0,0.0001376,2]
[420585646,1776274653125,-3500.0,0.0001376,2]
[420585647,1776274653135,-1245.47646913,0.00013821,2]
[420585648,1776274653144,-1076.295236,0.00013822,2]
[420585649,1776274653153,-142349.79616482,0.00013853,2]
[420585650,1776274653433,-26402.56574858,0.00013853,2]
[420585651,1776274653449,-500.0,0.00013873,2]
[420585652,1776274653458,-500.73852159,0.00013873,2]
[420585653,1776274653468,-500.0,0.00013873,2]
[420585654,1776274653477,-500.0,0.00013873,2]
[420585655,1776274653486,-165.06467602,0.00013873,2]
[420585656,1776274653495,-502.17135528,0.00013873,2]
[420585657,1776274653504,-500.0,0.00013873,2]
[420585658,1776274653513,-500.0,0.00013873,2]
[420585659,1776274653522,-213.73408632,0.00013873,2]
[420585660,1776274653531,-500.82826281,0.00013873,2]
[420585661,1776274653541,-500.80009142,0.00013873,2]
[420585662,1776274653550,-308.84034167,0.00013873,2]
[420585663,1776274653559,-500.0,0.00013873,2]
[420585664,1776274653568,-269.22789094,0.00013873,2]
[420585665,1776274653577,-506.89928352,0.00013873,2]
[420585666,1776274653586,-500.0,0.00013873,2]
[420585667,1776274653595,-391.74002262,0.00013873,2]
[420585668,1776274653605,-500.0,0.00013873,2]
[420585669,1776274653614,-500.0,0.00013873,2]
[420585670,1776274653623,-500.0,0.00013873,2]
[420585671,1776274653632,-500.0,0.00013873,2]
[420585672,1776274653641,-257.30712919,0.00013873,2]
[420585673,1776274653650,-500.0,0.00013873,2]
[420585674,1776274653659,-500.77815463,0.00013873,2]
[420585675,1776274653668,-500.0,0.00013873,2]